[Event "Early-Titled-Tuesday-Blitz-January-23-2024"]
[Site "Chess.com"]
[Date "2024.01.23"]
[Round "6"]
[White "NitaLucian"]
[Black "FMCarmona"]
[Result "0-1"]
[WhiteElo "2374"]
[BlackElo "2157"]
[TimeControl "180+1"]
[EndTime "9:03:36 PST"]
[Termination "FMCarmona won by resignation"]

1. e4 {[%clk 0:02:57.5]} 1... e5 {[%clk 0:03:00]} 2. d3 {[%clk 0:02:58.4]} 2...
Nc6 {[%clk 0:02:59.3]} 3. Nd2 {[%clk 0:02:58.5]} 3... Bc5 {[%clk 0:02:59.9]} 4.
Be2 {[%clk 0:02:58.8]} 4... Nf6 {[%clk 0:03:00.5]} 5. Ngf3 {[%clk 0:02:59.4]}
5... d6 {[%clk 0:03:00.8]} 6. O-O {[%clk 0:02:59.6]} 6... h6 {[%clk 0:02:58.5]}
7. c3 {[%clk 0:03:00.5]} 7... a6 {[%clk 0:02:58.3]} 8. b4 {[%clk 0:03:00.8]}
8... Ba7 {[%clk 0:02:58.2]} 9. a3 {[%clk 0:03:01.7]} 9... O-O {[%clk 0:02:57.3]}
10. Bb2 {[%clk 0:03:02.6]} 10... Ne7 {[%clk 0:02:56.3]} 11. d4 {[%clk
0:03:01.2]} 11... Ng6 {[%clk 0:02:55.6]} 12. g3 {[%clk 0:02:55.8]} 12... Re8
{[%clk 0:02:55.1]} 13. d5 {[%clk 0:02:56]} 13... c6 {[%clk 0:02:52.1]} 14. c4
{[%clk 0:02:56]} 14... cxd5 {[%clk 0:02:52.4]} 15. cxd5 {[%clk 0:02:55.4]} 15...
Bh3 {[%clk 0:02:48.7]} 16. Re1 {[%clk 0:02:54.8]} 16... Bxf2+ {[%clk 0:02:31.3]}
17. Kxf2 {[%clk 0:02:51.3]} 17... Qb6+ {[%clk 0:02:31.9]} 18. Nd4 {[%clk
0:02:43.1]} 18... exd4 {[%clk 0:02:31.8]} 19. Bd3 {[%clk 0:02:41.2]} 19... Ng4+
{[%clk 0:02:23.8]} 20. Kg1 {[%clk 0:02:41]} 20... Ne3 {[%clk 0:02:00.9]} 21. Qb3
{[%clk 0:02:27.9]} 21... Ne5 {[%clk 0:01:56.2]} 22. Kh1 {[%clk 0:02:22.6]} 22...
Rac8 {[%clk 0:01:30.7]} 23. Rac1 {[%clk 0:02:20.9]} 23... N5g4 {[%clk 0:01:25]}
24. Nc4 {[%clk 0:02:11.6]} 24... Nxc4 {[%clk 0:01:20.1]} 25. Rxc4 {[%clk
0:02:10.8]} 25... Nf2+ {[%clk 0:01:11.9]} 26. Kg1 {[%clk 0:02:10.3]} 26... Rxc4
{[%clk 0:01:07.7]} 27. Qxc4 {[%clk 0:02:07.5]} 27... Rc8 {[%clk 0:01:04]} 28.
Qxd4 {[%clk 0:02:02]} 28... Qxd4 {[%clk 0:01:01.4]} 29. Bxd4 {[%clk 0:02:00.3]}
29... Nxd3 {[%clk 0:01:01.7]} 30. Rd1 {[%clk 0:01:51.3]} 30... Ne5 {[%clk
0:01:01]} 31. Rd2 {[%clk 0:01:43.8]} 31... Nf3+ {[%clk 0:00:59.1]} 0-1

[Event "Early-Titled-Tuesday-Blitz-January-23-2024"]
[Site "Chess.com"]
[Date "2024.01.23"]
[Round "6"]
[White "Jenia84"]
[Black "DDTerziev04"]
[Result "0-1"]
[WhiteElo "2315"]
[BlackElo "2206"]
[TimeControl "180+1"]
[EndTime "9:03:37 PST"]
[Termination "DDTerziev04 won by resignation"]

1. Nf3 {[%clk 0:02:55.4]} 1... Nf6 {[%clk 0:02:57.4]} 2. d4 {[%clk 0:02:54.2]}
2... d5 {[%clk 0:02:52.7]} 3. c4 {[%clk 0:02:53.3]} 3... dxc4 {[%clk 0:02:53.6]}
4. Qa4+ {[%clk 0:02:48.6]} 4... c6 {[%clk 0:02:44.4]} 5. Qxc4 {[%clk 0:02:48.2]}
5... Bf5 {[%clk 0:02:37.5]} 6. Bg5 {[%clk 0:02:46.4]} 6... Nbd7 {[%clk
0:02:33.3]} 7. Nbd2 {[%clk 0:02:41.6]} 7... g6 {[%clk 0:02:25.9]} 8. Ne5 {[%clk
0:02:40.6]} 8... Be6 {[%clk 0:02:22.5]} 9. Qc2 {[%clk 0:02:35.3]} 9... Bg7
{[%clk 0:02:18.1]} 10. Nxd7 {[%clk 0:02:33.7]} 10... Qxd7 {[%clk 0:02:16.1]} 11.
e3 {[%clk 0:02:33.1]} 11... O-O {[%clk 0:02:15.6]} 12. Bc4 {[%clk 0:02:31.2]}
12... Bxc4 {[%clk 0:02:03.5]} 13. Nxc4 {[%clk 0:02:30]} 13... Rac8 {[%clk
0:01:59.8]} 14. O-O {[%clk 0:02:29]} 14... c5 {[%clk 0:01:57.6]} 15. Rad1 {[%clk
0:01:43.5]} 15... cxd4 {[%clk 0:01:47.2]} 16. Rxd4 {[%clk 0:01:43.4]} 16... Qb5
{[%clk 0:01:44.9]} 17. Bxf6 {[%clk 0:01:25.9]} 17... Bxf6 {[%clk 0:01:43.8]} 18.
Re4 {[%clk 0:01:26.2]} 18... Rfd8 {[%clk 0:01:34.8]} 19. h3 {[%clk 0:01:21.1]}
19... Qd5 {[%clk 0:01:26.9]} 0-1

[Event "Early-Titled-Tuesday-Blitz-January-23-2024"]
[Site "Chess.com"]
[Date "2024.01.23"]
[Round "6"]
[White "UnTucopalaTimba"]
[Black "WiktoriaPOL"]
[Result "0-1"]
[WhiteElo "1959"]
[BlackElo "2241"]
[TimeControl "180+1"]
[EndTime "9:03:52 PST"]
[Termination "WiktoriaPOL won by resignation"]

1. e4 {[%clk 0:02:59.3]} 1... c5 {[%clk 0:02:58.7]} 2. Nf3 {[%clk 0:02:59.1]}
2... d6 {[%clk 0:02:58.6]} 3. Bb5+ {[%clk 0:02:57.4]} 3... Nd7 {[%clk
0:02:57.6]} 4. d4 {[%clk 0:02:54.5]} 4... cxd4 {[%clk 0:02:57.2]} 5. Qxd4 {[%clk
0:02:53.9]} 5... a6 {[%clk 0:02:51.9]} 6. Bxd7+ {[%clk 0:02:53.6]} 6... Bxd7
{[%clk 0:02:51.2]} 7. Bg5 {[%clk 0:02:52.1]} 7... h6 {[%clk 0:02:47.2]} 8. Bh4
{[%clk 0:02:51.8]} 8... Qa5+ {[%clk 0:02:40.5]} 9. Nbd2 {[%clk 0:02:41.9]} 9...
e5 {[%clk 0:02:35]} 10. Qd3 {[%clk 0:02:22.5]} 10... g5 {[%clk 0:02:09.7]} 11.
Bg3 {[%clk 0:02:16.4]} 11... Be7 {[%clk 0:02:08.1]} 12. O-O-O {[%clk 0:02:10.3]}
12... Qxa2 {[%clk 0:02:01.4]} 13. Nb3 {[%clk 0:02:10.3]} 13... Nf6 {[%clk
0:01:56.3]} 14. h4 {[%clk 0:02:09]} 14... g4 {[%clk 0:01:54.2]} 15. Nfd2 {[%clk
0:02:08.6]} 15... Bb5 {[%clk 0:01:48.2]} 16. Nc4 {[%clk 0:01:50.6]} 16... O-O
{[%clk 0:01:34]} 17. Rhe1 {[%clk 0:01:40.2]} 17... Rac8 {[%clk 0:01:27.7]} 18.
Qe3 {[%clk 0:01:32.8]} 18... Rxc4 {[%clk 0:01:22.9]} 19. Qxh6 {[%clk 0:01:31.1]}
19... Qxb3 {[%clk 0:01:17.9]} 20. Qg5+ {[%clk 0:01:24]} 20... Kh8 {[%clk
0:01:17.2]} 21. Qh6+ {[%clk 0:01:21.2]} 21... Nh7 {[%clk 0:01:16.5]} 22. Rd2
{[%clk 0:01:16.8]} 22... Rfc8 {[%clk 0:01:13.1]} 23. c3 {[%clk 0:01:04.6]} 23...
Rxc3+ {[%clk 0:01:10.6]} 24. bxc3 {[%clk 0:01:04.6]} 24... Rxc3+ {[%clk
0:01:10]} 0-1

[Event "Early-Titled-Tuesday-Blitz-January-23-2024"]
[Site "Chess.com"]
[Date "2024.01.23"]
[Round "6"]
[White "hurricane7791"]
[Black "ProChessWICTH"]
[Result "1-0"]
[WhiteElo "2700"]
[BlackElo "2526"]
[TimeControl "180+1"]
[EndTime "9:04:00 PST"]
[Termination "hurricane7791 won by resignation"]

1. d4 {[%clk 0:03:00.9]} 1... Nf6 {[%clk 0:02:59.8]} 2. c4 {[%clk 0:02:57.7]}
2... g6 {[%clk 0:02:59.8]} 3. Nc3 {[%clk 0:02:57.4]} 3... d5 {[%clk 0:03:00.4]}
4. h4 {[%clk 0:02:55.4]} 4... Bg7 {[%clk 0:02:55.4]} 5. cxd5 {[%clk 0:02:53.3]}
5... Nxd5 {[%clk 0:02:55.5]} 6. h5 {[%clk 0:02:54.2]} 6... c5 {[%clk 0:02:50.2]}
7. Nf3 {[%clk 0:02:45.9]} 7... Nc6 {[%clk 0:02:49.6]} 8. e3 {[%clk 0:02:40.8]}
8... Bg4 {[%clk 0:02:39.7]} 9. Bc4 {[%clk 0:02:39.3]} 9... Nxc3 {[%clk
0:01:46.2]} 10. bxc3 {[%clk 0:02:40.2]} 10... Qd7 {[%clk 0:01:45.9]} 11. hxg6
{[%clk 0:02:22.1]} 11... hxg6 {[%clk 0:01:46.1]} 12. Rxh8+ {[%clk 0:02:22.7]}
12... Bxh8 {[%clk 0:01:46.3]} 13. Ba3 {[%clk 0:02:22.2]} 13... cxd4 {[%clk
0:01:42]} 14. cxd4 {[%clk 0:02:22.2]} 14... Rc8 {[%clk 0:01:36.4]} 15. Rc1
{[%clk 0:02:22.1]} 15... Na5 {[%clk 0:01:26.6]} 16. Be2 {[%clk 0:02:09.9]} 16...
Bf6 {[%clk 0:01:23.3]} 17. Rxc8+ {[%clk 0:02:04.9]} 17... Qxc8 {[%clk
0:01:10.2]} 18. Qa4+ {[%clk 0:02:01.2]} 18... Nc6 {[%clk 0:00:30.2]} 19. d5
{[%clk 0:01:59.4]} 19... Bc3+ {[%clk 0:00:20.5]} 20. Kf1 {[%clk 0:01:57.5]}
20... Qf5 {[%clk 0:00:17.2]} 21. dxc6 {[%clk 0:01:51.9]} 21... b5 {[%clk
0:00:11.8]} 22. Qxb5 {[%clk 0:01:45.4]} 1-0

[Event "Early-Titled-Tuesday-Blitz-January-23-2024"]
[Site "Chess.com"]
[Date "2024.01.23"]
[Round "6"]
[White "wanyaland"]
[Black "Chessdude1987"]
[Result "1-0"]
[WhiteElo "2462"]
[BlackElo "2273"]
[TimeControl "180+1"]
[EndTime "9:04:02 PST"]
[Termination "wanyaland won by resignation"]

1. d4 {[%clk 0:02:59.9]} 1... e6 {[%clk 0:02:59.9]} 2. c4 {[%clk 0:02:59.1]}
2... f5 {[%clk 0:03:00]} 3. g3 {[%clk 0:02:58.8]} 3... Nf6 {[%clk 0:03:00.3]} 4.
Bg2 {[%clk 0:02:59.1]} 4... Be7 {[%clk 0:03:00.3]} 5. Nh3 {[%clk 0:02:58.1]}
5... O-O {[%clk 0:03:01.2]} 6. Nc3 {[%clk 0:02:57.6]} 6... d6 {[%clk 0:03:01.1]}
7. Nf4 {[%clk 0:02:57.1]} 7... c6 {[%clk 0:03:01.4]} 8. O-O {[%clk 0:02:54.8]}
8... Qe8 {[%clk 0:03:00.4]} 9. Rb1 {[%clk 0:02:54.1]} 9... e5 {[%clk 0:03:00.4]}
10. dxe5 {[%clk 0:02:51]} 10... dxe5 {[%clk 0:03:00.6]} 11. Nd3 {[%clk 0:02:51]}
11... e4 {[%clk 0:02:47.4]} 12. Ne1 {[%clk 0:02:48.6]} 12... Be6 {[%clk
0:02:45.1]} 13. b3 {[%clk 0:02:47.8]} 13... Na6 {[%clk 0:02:43]} 14. Nc2 {[%clk
0:02:46.4]} 14... Rd8 {[%clk 0:02:42.5]} 15. Qe1 {[%clk 0:02:45.6]} 15... Ng4
{[%clk 0:02:39.2]} 16. h3 {[%clk 0:02:44.3]} 16... Ne5 {[%clk 0:02:38.3]} 17.
Be3 {[%clk 0:02:43.3]} 17... b6 {[%clk 0:02:32.9]} 18. Nd4 {[%clk 0:02:42.7]}
18... Bc8 {[%clk 0:02:31.3]} 19. Qc1 {[%clk 0:02:38.5]} 19... h6 {[%clk
0:02:28.9]} 20. Rd1 {[%clk 0:02:35.9]} 20... Bf6 {[%clk 0:02:21]} 21. b4 {[%clk
0:02:34.2]} 21... Nxc4 {[%clk 0:02:20.2]} 22. b5 {[%clk 0:02:31.3]} 22... Nxe3
{[%clk 0:02:18.8]} 23. fxe3 {[%clk 0:02:28.5]} 23... cxb5 {[%clk 0:02:08.7]} 24.
Ncxb5 {[%clk 0:02:28.5]} 24... Rf7 {[%clk 0:02:00.3]} 25. Qa3 {[%clk 0:02:24.8]}
25... Rfd7 {[%clk 0:01:46.9]} 26. Rdc1 {[%clk 0:02:22]} 26... Nc5 {[%clk
0:01:34.9]} 27. Nxa7 {[%clk 0:02:21.2]} 27... Ba6 {[%clk 0:01:33.6]} 28. Nac6
{[%clk 0:02:19.5]} 28... Ra8 {[%clk 0:01:05.8]} 29. Rxb6 {[%clk 0:02:18]} 29...
Bxe2 {[%clk 0:01:05.1]} 30. Qxc5 {[%clk 0:02:16.3]} 30... Kh8 {[%clk 0:00:50.7]}
31. Nxe2 {[%clk 0:02:12.2]} 31... Rd2 {[%clk 0:00:47.8]} 32. Nf4 {[%clk
0:02:09.9]} 32... g5 {[%clk 0:00:44.6]} 33. Qxf5 {[%clk 0:02:08.6]} 33... gxf4
{[%clk 0:00:33.3]} 34. Qxf6+ {[%clk 0:02:07.1]} 34... Kg8 {[%clk 0:00:33.5]} 35.
Ne7+ {[%clk 0:02:02.2]} 1-0

[Event "Early-Titled-Tuesday-Blitz-January-23-2024"]
[Site "Chess.com"]
[Date "2024.01.23"]
[Round "6"]
[White "Nemegejas"]
[Black "Grossboss19"]
[Result "1-0"]
[WhiteElo "2885"]
[BlackElo "2568"]
[TimeControl "180+1"]
[EndTime "9:04:08 PST"]
[Termination "Nemegejas won by resignation"]

1. Nf3 {[%clk 0:02:51.5]} 1... d5 {[%clk 0:02:58.7]} 2. g3 {[%clk 0:02:52]} 2...
Nc6 {[%clk 0:02:55.9]} 3. d4 {[%clk 0:02:50.4]} 3... Nf6 {[%clk 0:02:53.4]} 4.
c4 {[%clk 0:02:50.2]} 4... e6 {[%clk 0:02:52.5]} 5. Bg2 {[%clk 0:02:49.8]} 5...
Bb4+ {[%clk 0:02:50.9]} 6. Bd2 {[%clk 0:02:49.2]} 6... Bxd2+ {[%clk 0:02:49.9]}
7. Nbxd2 {[%clk 0:02:50.1]} 7... Ne7 {[%clk 0:02:50.1]} 8. O-O {[%clk
0:02:49.8]} 8... O-O {[%clk 0:02:50.4]} 9. Qc2 {[%clk 0:02:49.6]} 9... Bd7
{[%clk 0:02:47.5]} 10. Ne5 {[%clk 0:02:48.1]} 10... Rc8 {[%clk 0:02:43.2]} 11.
c5 {[%clk 0:02:45.4]} 11... Be8 {[%clk 0:02:36.6]} 12. Rad1 {[%clk 0:02:43.4]}
12... Nd7 {[%clk 0:02:32.1]} 13. Nd3 {[%clk 0:02:38.3]} 13... c6 {[%clk
0:02:27.5]} 14. b4 {[%clk 0:02:31.9]} 14... a6 {[%clk 0:02:23.6]} 15. a4 {[%clk
0:02:28.5]} 15... f6 {[%clk 0:02:21.7]} 16. e4 {[%clk 0:02:27.9]} 16... Ng6
{[%clk 0:02:18.9]} 17. h3 {[%clk 0:02:26]} 17... Bf7 {[%clk 0:02:17.3]} 18. f4
{[%clk 0:02:23.1]} 18... Ne7 {[%clk 0:02:10.2]} 19. Rfe1 {[%clk 0:02:20.9]}
19... Kh8 {[%clk 0:02:06.6]} 20. Kh2 {[%clk 0:02:19.4]} 20... Re8 {[%clk
0:02:05.6]} 21. Qb2 {[%clk 0:02:17.2]} 21... Qc7 {[%clk 0:01:53.9]} 22. Re3
{[%clk 0:02:05.5]} 22... e5 {[%clk 0:01:40.8]} 23. fxe5 {[%clk 0:02:03.9]} 23...
fxe5 {[%clk 0:01:40.7]} 24. dxe5 {[%clk 0:02:03.2]} 24... dxe4 {[%clk
0:01:38.7]} 25. Nxe4 {[%clk 0:02:02.7]} 25... Nd5 {[%clk 0:01:38.5]} 26. Ree1
{[%clk 0:01:53.3]} 26... Nxe5 {[%clk 0:01:28.8]} 27. Nxe5 {[%clk 0:01:53.4]}
27... Rxe5 {[%clk 0:01:24.4]} 28. Nd6 {[%clk 0:01:52.6]} 28... Rxe1 {[%clk
0:01:24.3]} 29. Rxe1 {[%clk 0:01:52.5]} 29... Rf8 {[%clk 0:01:21.8]} 30. b5
{[%clk 0:01:39.4]} 30... axb5 {[%clk 0:01:21.5]} 31. axb5 {[%clk 0:01:40.3]}
31... b6 {[%clk 0:01:13.5]} 32. bxc6 {[%clk 0:01:32.8]} 32... Qxc6 {[%clk
0:01:09.2]} 33. Nxf7+ {[%clk 0:01:30.6]} 33... Rxf7 {[%clk 0:01:10.1]} 34. Bxd5
{[%clk 0:01:30.6]} 34... Qxc5 {[%clk 0:00:51.9]} 35. Bxf7 {[%clk 0:01:26.9]} 1-0

[Event "Early-Titled-Tuesday-Blitz-January-23-2024"]
[Site "Chess.com"]
[Date "2024.01.23"]
[Round "6"]
[White "otrov-11"]
[Black "Martial2008"]
[Result "1-0"]
[WhiteElo "2518"]
[BlackElo "2653"]
[TimeControl "180+1"]
[EndTime "9:04:08 PST"]
[Termination "otrov-11 won by resignation"]

1. d4 {[%clk 0:03:00.9]} 1... e5 {[%clk 0:03:00.9]} 2. dxe5 {[%clk 0:03:00]}
2... Nc6 {[%clk 0:03:01.7]} 3. Nf3 {[%clk 0:02:59.4]} 3... Qe7 {[%clk
0:03:02.4]} 4. Bf4 {[%clk 0:02:58.4]} 4... Qb4+ {[%clk 0:03:02.9]} 5. Bd2 {[%clk
0:02:59]} 5... Qxb2 {[%clk 0:03:03.5]} 6. Nc3 {[%clk 0:02:56]} 6... Bb4 {[%clk
0:03:03.1]} 7. Rb1 {[%clk 0:02:54]} 7... Qxc3 {[%clk 0:03:03.5]} 8. Bxc3 {[%clk
0:02:52.9]} 8... Bxc3+ {[%clk 0:03:04.4]} 9. Nd2 {[%clk 0:02:52.7]} 9... Nxe5
{[%clk 0:02:58.7]} 10. e3 {[%clk 0:02:48.8]} 10... Nf6 {[%clk 0:02:57.6]} 11.
Bd3 {[%clk 0:02:48.7]} 11... O-O {[%clk 0:02:45.2]} 12. O-O {[%clk 0:02:47.8]}
12... d6 {[%clk 0:02:45.1]} 13. Nf3 {[%clk 0:02:42]} 13... Bg4 {[%clk
0:02:43.2]} 14. Be2 {[%clk 0:02:42.1]} 14... Be6 {[%clk 0:02:40.3]} 15. Rxb7
{[%clk 0:02:37.6]} 15... Ba5 {[%clk 0:02:38.8]} 16. Nxe5 {[%clk 0:02:32.4]}
16... dxe5 {[%clk 0:02:38.1]} 17. Qb1 {[%clk 0:02:30.7]} 17... Bb6 {[%clk
0:02:37.1]} 18. Qb2 {[%clk 0:02:14.7]} 18... Nd7 {[%clk 0:02:25.8]} 19. Bf3
{[%clk 0:02:09.9]} 19... f6 {[%clk 0:02:16.2]} 20. Rxb6 {[%clk 0:02:08.7]} 20...
axb6 {[%clk 0:02:17.1]} 21. Bxa8 {[%clk 0:02:08.7]} 21... Rxa8 {[%clk 0:02:18]}
22. Rd1 {[%clk 0:02:03.9]} 22... Nc5 {[%clk 0:02:13.1]} 23. Qb5 {[%clk
0:01:58.8]} 23... Kf7 {[%clk 0:02:02.6]} 24. Qc6 {[%clk 0:01:54.9]} 24... Rc8
{[%clk 0:02:00.3]} 25. f4 {[%clk 0:01:52.8]} 25... e4 {[%clk 0:01:50.7]} 26. h3
{[%clk 0:01:49.9]} 26... Ke7 {[%clk 0:01:47.6]} 27. a3 {[%clk 0:01:48.2]} 27...
Bd7 {[%clk 0:01:45.1]} 28. Qd5 {[%clk 0:01:47]} 28... Be6 {[%clk 0:01:45.2]} 29.
Qh5 {[%clk 0:01:47.5]} 29... h6 {[%clk 0:01:30.2]} 30. Qg6 {[%clk 0:01:44]}
30... Kf8 {[%clk 0:01:26.7]} 31. g4 {[%clk 0:01:44.5]} 31... Ra8 {[%clk
0:01:22.9]} 32. g5 {[%clk 0:01:43]} 32... hxg5 {[%clk 0:01:13.8]} 33. fxg5
{[%clk 0:01:42.8]} 33... f5 {[%clk 0:01:14.3]} 34. h4 {[%clk 0:01:34]} 34... Re8
{[%clk 0:00:56.6]} 35. h5 {[%clk 0:01:30.1]} 35... Re7 {[%clk 0:00:51.7]} 36.
Rd8+ {[%clk 0:01:28.8]} 1-0

[Event "Early-Titled-Tuesday-Blitz-January-23-2024"]
[Site "Chess.com"]
[Date "2024.01.23"]
[Round "6"]
[White "Ati1517"]
[Black "NtcPou"]
[Result "1-0"]
[WhiteElo "2219"]
[BlackElo "1998"]
[TimeControl "180+1"]
[EndTime "9:04:08 PST"]
[Termination "Ati1517 won by checkmate"]

1. e4 {[%clk 0:03:00.9]} 1... c6 {[%clk 0:02:54.8]} 2. d4 {[%clk 0:03:00]} 2...
d5 {[%clk 0:02:54.9]} 3. Nc3 {[%clk 0:02:59.7]} 3... dxe4 {[%clk 0:02:54.1]} 4.
Nxe4 {[%clk 0:03:00.6]} 4... Bf5 {[%clk 0:02:54.2]} 5. Ng3 {[%clk 0:03:00.5]}
5... Bg6 {[%clk 0:02:54.6]} 6. f4 {[%clk 0:02:59.5]} 6... e6 {[%clk 0:02:53.7]}
7. Nf3 {[%clk 0:03:00]} 7... Nd7 {[%clk 0:02:52.4]} 8. c3 {[%clk 0:02:59.7]}
8... Bd6 {[%clk 0:02:50.5]} 9. Ne5 {[%clk 0:02:58.7]} 9... Bxe5 {[%clk
0:02:49.3]} 10. fxe5 {[%clk 0:02:58.5]} 10... Ne7 {[%clk 0:02:47.7]} 11. Bd3
{[%clk 0:02:57.6]} 11... c5 {[%clk 0:02:45.4]} 12. O-O {[%clk 0:02:26.9]} 12...
cxd4 {[%clk 0:02:44.9]} 13. cxd4 {[%clk 0:02:26.7]} 13... Qb6 {[%clk 0:02:45.1]}
14. Bxg6 {[%clk 0:02:12.4]} 14... hxg6 {[%clk 0:02:40.8]} 15. Kh1 {[%clk
0:02:06.2]} 15... O-O-O {[%clk 0:02:30]} 16. Bg5 {[%clk 0:02:03.7]} 16... Rde8
{[%clk 0:01:55]} 17. Ne4 {[%clk 0:02:01.8]} 17... Nf5 {[%clk 0:01:49]} 18. g4
{[%clk 0:01:42.1]} 18... Nxd4 {[%clk 0:01:43]} 19. Nd6+ {[%clk 0:01:41.3]} 19...
Kb8 {[%clk 0:01:43.2]} 20. Nxe8 {[%clk 0:01:40.9]} 20... Rxe8 {[%clk 0:01:29.7]}
21. Rc1 {[%clk 0:01:34.4]} 21... Ka8 {[%clk 0:00:44.2]} 22. Be3 {[%clk
0:01:31.5]} 22... Rh8 {[%clk 0:00:27]} 23. Qxd4 {[%clk 0:01:28.2]} 23... Qb5
{[%clk 0:00:24.9]} 24. Qxa7# {[%clk 0:01:27.8]} 1-0

[Event "Early-Titled-Tuesday-Blitz-January-23-2024"]
[Site "Chess.com"]
[Date "2024.01.23"]
[Round "6"]
[White "BogdanDeac"]
[Black "vladislavkovalev"]
[Result "1/2-1/2"]
[WhiteElo "3073"]
[BlackElo "2859"]
[TimeControl "180+1"]
[EndTime "9:04:26 PST"]
[Termination "Game drawn by agreement"]

1. d4 {[%clk 0:03:00.9]} 1... Nf6 {[%clk 0:03:00.2]} 2. c4 {[%clk 0:03:01.6]}
2... e6 {[%clk 0:03:00.1]} 3. Nc3 {[%clk 0:03:02.2]} 3... Bb4 {[%clk 0:03:00.2]}
4. Qc2 {[%clk 0:03:02.9]} 4... O-O {[%clk 0:02:59]} 5. e4 {[%clk 0:03:02.7]}
5... d5 {[%clk 0:02:59.2]} 6. e5 {[%clk 0:03:03.1]} 6... Ne4 {[%clk 0:02:59.8]}
7. Bd3 {[%clk 0:03:03.6]} 7... c5 {[%clk 0:02:59.1]} 8. Nf3 {[%clk 0:03:04.2]}
8... cxd4 {[%clk 0:02:47.4]} 9. Nxd4 {[%clk 0:03:05.1]} 9... Nd7 {[%clk
0:02:47.1]} 10. Bf4 {[%clk 0:03:04]} 10... Qh4 {[%clk 0:02:46.9]} 11. g3 {[%clk
0:03:03.4]} 11... Qh5 {[%clk 0:02:41.3]} 12. O-O {[%clk 0:03:03.2]} 12... g5
{[%clk 0:02:41]} 13. cxd5 {[%clk 0:03:02.2]} 13... Nxc3 {[%clk 0:02:05]} 14.
dxe6 {[%clk 0:02:43.8]} 14... gxf4 {[%clk 0:02:01]} 15. exd7 {[%clk 0:02:43.7]}
15... Bxd7 {[%clk 0:01:52.8]} 16. bxc3 {[%clk 0:02:43.8]} 16... fxg3 {[%clk
0:01:31.1]} 17. hxg3 {[%clk 0:02:37.7]} 17... Rac8 {[%clk 0:01:31.4]} 18. Bf5
{[%clk 0:02:00]} 18... Bxc3 {[%clk 0:01:12.3]} 19. Bxd7 {[%clk 0:01:55]} 19...
Bxa1 {[%clk 0:01:12.6]} 20. Bxc8 {[%clk 0:01:46.7]} 20... Bxd4 {[%clk
0:01:12.9]} 21. Bxb7 {[%clk 0:01:47]} 21... Qxe5 {[%clk 0:01:09.9]} 22. Kg2
{[%clk 0:01:47]} 22... Rb8 {[%clk 0:01:01.5]} 23. Rb1 {[%clk 0:01:42]} 23... Kg7
{[%clk 0:00:57.4]} 24. Bf3 {[%clk 0:01:38.3]} 24... Rxb1 {[%clk 0:00:55.9]} 25.
Qxb1 {[%clk 0:01:38.4]} 25... Qc5 {[%clk 0:00:39.3]} 26. Qe1 {[%clk 0:01:37.2]}
26... Qc3 {[%clk 0:00:32]} 27. Qe2 {[%clk 0:01:33.9]} 27... Qb2 {[%clk
0:00:31.8]} 28. Qxb2 {[%clk 0:01:32.6]} 28... Bxb2 {[%clk 0:00:32.7]} 29. Be2
{[%clk 0:01:31.6]} 29... h6 {[%clk 0:00:33.2]} 30. Bd3 {[%clk 0:01:32.2]} 30...
a5 {[%clk 0:00:33.5]} 31. f4 {[%clk 0:01:32.7]} 31... Ba3 {[%clk 0:00:33.7]} 32.
Bc2 {[%clk 0:01:32.4]} 32... Bb4 {[%clk 0:00:32.3]} 33. g4 {[%clk 0:01:32.4]}
33... f6 {[%clk 0:00:31.8]} 34. Kf3 {[%clk 0:01:32.6]} 34... Bd2 {[%clk
0:00:32.3]} 35. Ke4 {[%clk 0:01:32.7]} 35... Bc1 {[%clk 0:00:32.8]} 36. Kf5
{[%clk 0:01:32.8]} 36... Bd2 {[%clk 0:00:33.4]} 1/2-1/2

[Event "Early-Titled-Tuesday-Blitz-January-23-2024"]
[Site "Chess.com"]
[Date "2024.01.23"]
[Round "6"]
[White "Slovineanu"]
[Black "xakevicius91"]
[Result "1-0"]
[WhiteElo "2423"]
[BlackElo "2557"]
[TimeControl "180+1"]
[EndTime "9:04:27 PST"]
[Termination "Slovineanu won by resignation"]

1. d4 {[%clk 0:02:54.8]} 1... Nf6 {[%clk 0:02:25.8]} 2. Nf3 {[%clk 0:02:52.8]}
2... g6 {[%clk 0:02:25.8]} 3. Nbd2 {[%clk 0:02:53.2]} 3... d5 {[%clk 0:02:25.6]}
4. e3 {[%clk 0:02:53.3]} 4... Bg7 {[%clk 0:02:25.6]} 5. b4 {[%clk 0:02:53.4]}
5... O-O {[%clk 0:02:25.9]} 6. c4 {[%clk 0:02:52.6]} 6... c6 {[%clk 0:02:24.9]}
7. Be2 {[%clk 0:02:48.3]} 7... Bf5 {[%clk 0:02:24.9]} 8. O-O {[%clk 0:02:46]}
8... Ne4 {[%clk 0:02:25.2]} 9. Qb3 {[%clk 0:02:42.1]} 9... Nxd2 {[%clk
0:02:25.4]} 10. Bxd2 {[%clk 0:02:38.7]} 10... e6 {[%clk 0:02:24.6]} 11. a4
{[%clk 0:02:37.1]} 11... Nd7 {[%clk 0:02:23.7]} 12. b5 {[%clk 0:02:36.5]} 12...
Re8 {[%clk 0:02:21.8]} 13. Bb4 {[%clk 0:02:19.5]} 13... c5 {[%clk 0:02:17.8]}
14. dxc5 {[%clk 0:02:00.2]} 14... Bxa1 {[%clk 0:02:18.7]} 15. Rxa1 {[%clk
0:02:00.2]} 15... Rc8 {[%clk 0:02:16.7]} 16. cxd5 {[%clk 0:01:38.7]} 16... Nxc5
{[%clk 0:02:11.3]} 17. Qa3 {[%clk 0:01:28.9]} 17... Qxd5 {[%clk 0:01:53.5]} 18.
Rd1 {[%clk 0:01:28.1]} 18... Nd3 {[%clk 0:01:53.7]} 19. Bxd3 {[%clk 0:01:20.5]}
19... Red8 {[%clk 0:01:52]} 20. Be2 {[%clk 0:00:56]} 20... Qe4 {[%clk
0:01:39.4]} 21. Rxd8+ {[%clk 0:00:53.3]} 21... Rxd8 {[%clk 0:01:40.3]} 22. h3
{[%clk 0:00:52.5]} 22... Qb1+ {[%clk 0:01:33.8]} 23. Kh2 {[%clk 0:00:51.7]}
23... h6 {[%clk 0:01:31.8]} 24. Qc3 {[%clk 0:00:47.2]} 24... Re8 {[%clk
0:01:21.2]} 25. Qd4 {[%clk 0:00:40.8]} 25... e5 {[%clk 0:01:18.7]} 26. Nxe5
{[%clk 0:00:36.2]} 26... Qa2 {[%clk 0:01:10.5]} 27. Bc4 {[%clk 0:00:33.5]} 27...
Qxf2 {[%clk 0:01:10.2]} 28. Bxf7+ {[%clk 0:00:31.8]} 1-0